bitfinex/quotes_ETHUSD_20240709
["timestamp","ask_amount","ask_price","bid_price","bid_amount"]
[1720533543652,2.4869749,3072.9,3071.9,2.3477]
[1720533543844,1.12769145,3072.8,3071.9,2.3477]
[1720533544158,1.12769145,3072.8,3071.9,3.31947]
[1720533544566,1.12769145,3072.9,3071.9,3.31947]
[1720533544762,1.12769145,3072.7,3071.9,3.31947]
[1720533544965,3.84708345,3073.0,3071.9,3.31947]
[1720533545173,1.12791888,3072.9,3071.9,3.31947]
[1720533545344,1.62541911,3072.8,3071.9,0.97177]
[1720533545531,3.84708345,3073.0,3071.9,1.03686824]
[1720533545532,1.12791888,3072.7,3071.9,1.03686824]
[1720533545730,2.4878,3073.0,3071.9,0.97177]
[1720533545936,1.12780753,3072.9,3071.9,0.97177]
[1720533546274,1.12780753,3072.8,3071.9,0.97177]
[1720533546574,2.4878,3073.0,3071.9,0.97177]
[1720533546575,1.12780753,3072.7,3071.9,0.97177]
[1720533546742,1.12780753,3072.9,3072.0,0.834177]
[1720533546933,1.12780753,3072.9,3072.1,0.06509652]
[1720533547134,0.370004,3073.3,3072.2,2.4795]
[1720533547399,1.12771782,3073.2,3072.3,0.0650885]
[1720533547681,1.12771782,3073.1,3072.5,3.25467]
[1720533547882,0.370004,3073.3,3072.8,3.2543]
[1720533548071,0.370004,3073.3,3072.9,0.61507348]
[1720533548273,0.370004,3073.3,3072.9,0.55]
[1720533548493,0.370004,3073.3,3073.1,2.4995]
[1720533548645,0.370004,3073.3,3073.2,0.06507011]
[1720533548990,0.370004,3073.3,3073.2,0.58186501]
[1720533549170,0.370004,3073.3,3073.1,2.4995]
[1720533551400,0.370004,3073.3,3073.1,2.56457036]
[1720533551687,0.370004,3073.3,3073.0,3.0]
[1720533551897,0.370004,3073.3,3072.9,3.55]
[1720533552059,0.370004,3073.3,3072.6,2.64947568]
[1720533552405,1.12751871,3073.2,3072.7,0.26494757]
[1720533552696,0.370004,3073.3,3072.7,3.51939757]
[1720533552850,1.12754257,3073.2,3072.7,3.51939757]
[1720533553055,0.370004,3073.3,3072.7,3.51939757]
[1720533553256,0.370004,3073.3,3072.8,0.94234433]
[1720533553456,1.12754593,3073.2,3072.8,0.94234433]
[1720533553695,0.370004,3073.3,3072.8,0.94234433]
[1720533554280,0.370004,3073.3,3072.9,3.31925534]
[1720533554484,0.370004,3073.3,3073.0,0.55]
[1720533554668,0.370004,3073.3,3073.1,0.38692553]
[1720533555356,0.370004,3073.3,3073.0,0.55]
[1720533555558,1.12753369,3073.2,3072.8,0.94234433]
[1720533555782,0.370004,3073.3,3072.8,0.94234433]
[1720533555987,1.12755486,3073.2,3072.8,0.94234433]
[1720533556162,0.370004,3073.3,3072.8,0.94234433]
[1720533556354,0.370004,3073.3,3072.9,0.74617419]
[1720533557193,0.370004,3073.3,3073.0,0.06507539]
[1720533557908,0.370004,3073.3,3073.2,5.60593]
[1720533558194,0.370004,3073.3,3073.2,9.22099304]
[1720533558760,0.370004,3073.3,3073.2,12.47492304]
[1720533558953,0.370004,3073.3,3073.2,13.72241534]
[1720533559178,0.370004,3073.3,3073.2,13.6573523]
[1720533560410,0.370004,3073.3,3073.2,10.4034223]
[1720533561465,0.370004,3073.3,3073.2,13.6573523]
[1720533561883,0.370004,3073.3,3073.2,10.4034223]
[1720533562474,0.370004,3073.3,3073.2,13.6573523]
[1720533562670,0.370004,3073.3,3073.2,10.4034223]
[1720533564002,0.370004,3073.3,3073.2,13.6573523]
[1720533564298,0.370004,3073.3,3073.2,10.4034223]
[1720533564903,0.370004,3073.3,3073.2,7.1494923]
[1720533565273,0.370004,3073.3,3073.2,6.5994923]
[1720533565478,0.370004,3073.3,3073.2,5.352]
[1720533566304,0.370004,3073.3,3073.2,8.60593]
[1720533566507,0.370004,3073.3,3073.2,9.15593]
[1720533566975,0.370004,3073.3,3073.2,3.0]
[1720533567299,0.370004,3073.3,3072.9,3.74617419]
[1720533567473,0.370004,3073.3,3073.0,1.48405742]
[1720533567676,0.370004,3073.3,3073.1,3.25395]
[1720533568002,0.370004,3073.3,3073.2,6.80393]
[1720533568796,0.370004,3073.3,3073.2,3.55]
[1720533569294,0.370004,3073.3,3073.2,6.80393]
[1720533569499,0.370004,3073.3,3073.2,7.57772874]
[1720533570412,0.370004,3073.3,3073.2,4.32379874]
[1720533570566,0.370004,3073.3,3073.2,7.57772874]
[1720533570998,0.370004,3073.3,3073.2,4.32379874]
[1720533571616,0.370004,3073.3,3073.2,7.57772874]
[1720533574922,0.370004,3073.3,3073.2,4.32379874]
[1720533575429,0.370004,3073.3,3073.2,3.77379874]
[1720533575609,0.370004,3073.3,3073.0,0.93405742]
[1720533575924,0.370004,3073.3,3072.7,0.26494757]
[1720533576217,0.370004,3073.3,3072.7,3.26494757]
[1720533576420,1.12746882,3073.2,3072.7,3.26494757]
[1720533576720,1.12753105,3073.1,3072.8,3.0]
[1720533576922,0.370004,3073.3,3072.7,0.26494757]
[1720533577225,0.370004,3073.3,3072.8,3.97135838]
[1720533577399,0.370004,3073.3,3072.9,3.0]
[1720533577912,0.370004,3073.3,3073.1,3.25404]
[1720533578220,0.628451,3073.3,3073.2,0.55]
[1720533578378,0.628451,3073.3,3073.1,6.25403]
[1720533578577,0.628451,3073.3,3073.2,1.788255]
[1720533579719,0.628451,3073.3,3073.2,0.55]
[1720533579899,0.628451,3073.3,3073.0,3.0]
[1720533581016,0.628451,3073.3,3073.0,6.25405]
[1720533581231,0.628451,3073.3,3073.2,3.25393]
[1720533581522,0.628451,3073.3,3073.2,3.80393]
[1720533581724,0.628451,3073.3,3073.2,4.809728]
[1720533582523,0.628451,3073.3,3073.2,1.555798]
[1720533582722,1.75587125,3073.3,3073.2,1.555798]
[1720533582923,0.628451,3073.3,3073.2,1.555798]
[1720533583897,0.628451,3073.3,3073.2,1.005798]
[1720533584103,0.628451,3073.3,3072.9,3.0]
[1720533584308,0.628451,3073.3,3072.8,0.65194376]
[1720533584627,0.628451,3073.3,3072.1,3.25507]
[1720533584628,1.12744406,3073.2,3072.2,5.58124]
[1720533584786,1.12744406,3073.1,3072.2,8.83617]
[1720533584989,1.12744406,3073.0,3072.2,8.83616]
[1720533585185,1.12744406,3073.2,3072.3,4.138496]
[1720533585420,1.12744406,3073.1,3072.3,0.883616]
[1720533585620,1.12744406,3073.2,3072.3,0.883616]
[1720533586022,1.12744406,3073.2,3072.2,3.25489]
[1720533586427,0.628451,3073.3,3072.5,3.2546]
[1720533586625,1.12760851,3073.1,3073.0,3.25414]
[1720533586816,1.12760851,3073.1,3073.0,6.50828]
[1720533587021,0.20480839,3073.1,3073.0,10.05828]
[1720533587527,0.20480839,3073.1,3073.0,11.73934658]
[1720533589699,0.11193784,3073.3,3073.2,9.94086]
[1720533589895,0.11193784,3073.3,3073.2,13.49086]
[1720533590434,0.11193784,3073.3,3073.2,16.74479]
[1720533590731,2.4962,3075.6,3073.9,3.25314]
[1720533590900,2.4962,3075.4,3074.1,3.25296]
[1720533591094,1.12701246,3075.3,3074.1,3.25296]
[1720533591333,1.12701246,3075.2,3074.1,3.25296]
[1720533591534,1.12701246,3075.1,3074.1,4.21007477]
[1720533591715,1.12701246,3075.0,3074.1,4.21007477]
[1720533591917,1.12701246,3074.9,3074.1,4.21007477]
[1720533592120,1.12701246,3074.8,3074.1,4.21007477]
[1720533592312,1.12701246,3074.7,3074.1,4.21007477]
[1720533592501,2.4962,3075.4,3074.2,0.72100748]
[1720533592846,1.12691741,3075.3,3074.2,0.78605515]
[1720533593047,1.12691741,3075.2,3074.2,0.78605515]
[1720533593215,1.12691741,3075.1,3074.2,0.78605515]
[1720533593546,1.12691741,3075.0,3074.7,3.25233]
[1720533593844,2.4962,3075.4,3074.7,3.96783981]
[1720533594010,2.3426,3076.3,3075.1,3.25184]
[1720533594209,2.3426,3076.3,3074.8,6.4500373]
[1720533594210,1.12661677,3076.2,3075.2,0.06502755]
[1720533594409,1.12661677,3076.1,3075.5,3.2515]
[1720533594639,2.3426,3076.3,3075.5,3.2515]
[1720533594941,1.12642896,3076.2,3075.5,3.2515]
[1720533595122,2.3426,3076.3,3075.6,3.31640886]
[1720533595441,2.3426,3076.3,3075.7,3.8012]
[1720533595609,2.3426,3076.3,3075.7,3.86621359]
[1720533595938,2.3426,3076.3,3075.7,3.8012]
[1720533596734,2.3426,3076.3,3075.7,0.55]
[1720533597037,2.3426,3076.3,3075.7,3.80129]
[1720533597240,2.3426,3076.3,3075.7,0.55]
[1720533597771,2.3426,3076.3,3075.7,3.80129]
[1720533598714,2.4903,3076.6,3075.7,3.80129]
[1720533598919,2.4903,3076.6,3075.8,0.06501363]
[1720533599544,2.4903,3076.6,3075.8,0.06501364]
[1720533599859,2.4903,3076.6,3075.8,3.31619364]
[1720533600043,2.4903,3076.6,3075.9,3.0]
[1720533600243,2.438,3077.0,3076.0,0.06501192]
[1720533600443,2.438,3077.0,3076.1,0.63160719]
[1720533600756,2.438,3077.0,3076.2,0.06500964]
[1720533601184,4.12741059,3077.4,3076.3,3.25063]
[1720533601358,4.12741059,3077.4,3076.4,3.06500214]
[1720533601518,2.2747,3076.6,3075.7,0.55]
[1720533601722,0.23886918,3076.5,3075.7,3.25128]
[1720533601972,2.3877,3077.2,3075.6,0.06501475]
[1720533602171,2.3877,3077.2,3075.8,0.55]
[1720533602660,4.12741059,3077.4,3075.6,3.0]
[1720533602661,2.3878,3076.6,3075.6,3.0]
[1720533603063,2.3878,3076.6,3075.6,6.25139]
[1720533603279,2.3878,3076.6,3075.7,3.25127]
[1720533603565,4.12741059,3077.4,3075.8,4.24013942]
[1720533603773,2.2887,3077.0,3076.0,3.25097]
[1720533603953,2.2887,3077.0,3075.9,3.31600927]
[1720533604321,2.2887,3077.0,3076.0,3.25095]
[1720533604526,2.2887,3077.0,3076.1,3.06500922]
[1720533604859,2.2887,3077.0,3076.1,3.0]
[1720533605071,2.2887,3077.0,3075.9,3.251]
[1720533605273,2.2887,3077.0,3076.0,3.06500928]
[1720533605657,4.12741059,3077.4,3076.2,3.25066]
[1720533605971,4.12741059,3077.4,3076.3,0.61500181]
[1720533606148,4.12741059,3077.4,3076.3,3.86565181]
[1720533606663,2.3272,3077.5,3076.3,3.80065]
[1720533606863,2.3272,3077.5,3076.3,3.25065]
[1720533607037,2.3272,3077.5,3076.2,0.06500183]
[1720533607237,2.3272,3077.5,3076.2,4.51782301]
[1720533607432,2.3272,3077.5,3076.4,3.25049]
[1720533607749,2.3272,3077.5,3076.5,6.31543872]
[1720533608346,2.4456,3078.2,3076.6,15.03641797]
[1720533608686,2.4456,3078.2,3077.2,6.49933]
[1720533608838,2.4456,3078.2,3077.3,3.96444523]
[1720533609038,2.835,3079.2,3077.7,3.24915]
[1720533609039,2.4803,3079.2,3077.7,3.24915]
[1720533609239,2.4803,3079.2,3077.8,0.06497162]
[1720533609472,2.4803,3079.2,3077.8,3.06497162]
[1720533610291,2.4803,3079.2,3077.8,6.31403162]
[1720533610451,0.24803,3079.1,3077.9,4.43029316]
[1720533610639,0.1139918,3079.8,3078.2,3.24864]
[1720533610844,0.1139918,3079.8,3078.3,3.0649601]
[1720533611150,0.1139918,3079.8,3078.3,3.3134701]
[1720533611467,0.1139918,3079.8,3078.9,3.766]
[1720533611666,0.1139918,3079.8,3078.6,3.433]
[1720533611667,0.1139918,3079.8,3079.7,3.24706]
[1720533611973,0.1139918,3079.8,3079.0,3.43316048]
[1720533612150,0.1139918,3079.8,3078.8,3.0]
[1720533612344,0.1139918,3079.8,3079.0,3.2478]
[1720533612551,0.1139918,3079.8,3079.1,0.06494215]
[1720533612788,0.1139918,3079.8,3079.2,3.79756]
[1720533613145,0.1139918,3079.8,3079.3,0.06493905]
[1720533613459,0.1139918,3079.8,3079.7,6.49412]
[1720533613644,0.1139918,3079.8,3079.7,6.24706]
[1720533613851,0.1139918,3079.8,3079.7,6.79706]
[1720533614147,2.4934,3081.3,3079.7,3.61492051]
[1720533614457,2.4127,3082.0,3080.1,3.24663]
[1720533614664,2.4127,3082.0,3080.2,3.79651]
[1720533614875,2.2918,3082.8,3080.6,3.24611]
[1720533615188,1.5,3083.5,3080.9,3.2458]
[1720533615189,3.766,3083.1,3080.9,3.2458]
[1720533615358,2.2918,3083.5,3080.7,3.93951294]
[1720533615359,2.2918,3083.5,3081.0,0.61489704]
[1720533615689,3.766,3084.1,3081.2,6.0471]
[1720533615860,0.1139918,3086.0,3082.7,3.24388]
[1720533615861,2.3825,3084.7,3082.7,3.24388]
[1720533616244,2.3825,3084.7,3082.2,3.0]
[1720533616395,0.33968546,3084.7,3082.3,3.17375412]
[1720533616553,0.33968546,3084.7,3082.4,3.0]
[1720533616753,1.5,3085.1,3082.0,3.23492151]
[1720533617089,3.766,3083.8,3081.0,4.42530954]
[1720533617290,3.766,3083.3,3081.1,3.24549]
[1720533617455,0.3766,3083.2,3081.2,0.33103786]
[1720533617651,2.3645,3083.1,3080.2,5.59383]
[1720533617857,2.3645,3083.0,3080.9,3.24574]
[1720533618196,6.1305,3083.0,3080.8,3.2459]
[1720533618354,6.1305,3083.0,3080.6,3.24607]
[1720533618554,3.0,3082.9,3080.4,3.23492151]
[1720533618749,3.0,3082.9,3079.8,3.60838205]
[1720533618750,3.766,3082.5,3079.8,2.68579205]
[1720533618990,3.766,3082.0,3079.9,0.59328321]
[1720533619194,3.0,3081.9,3080.0,0.06492276]
[1720533619513,3.766,3081.5,3079.1,5.67378]
[1720533619791,2.8432,3081.8,3079.8,3.24686]
[1720533619792,2.2932,3081.8,3079.8,3.24686]
[1720533620090,3.0,3081.7,3079.7,0.06492193]
[1720533620291,2.2932,3081.8,3079.9,0.06492193]
[1720533620508,0.22932,3081.7,3080.4,3.24632]
[1720533620796,3.22932,3081.7,3080.1,3.24662]
[1720533620981,0.22932,3081.7,3080.1,3.24656]
[1720533621182,3.0,3082.2,3080.1,3.24663]
[1720533621381,5.4186,3082.3,3080.0,0.33117919]
[1720533621584,3.433,3082.0,3079.5,3.24726]
[1720533621759,3.0,3081.9,3079.9,3.24684]
[1720533621961,3.0,3081.9,3080.1,3.24661]
[1720533622203,0.3,3081.8,3079.7,3.24701]
[1720533622372,3.0,3082.2,3079.8,3.0]
[1720533622574,3.433,3082.0,3079.8,6.2469]
[1720533622887,2.4086,3081.7,3079.2,3.23492151]
[1720533623091,5.483,3081.6,3078.9,3.24789]
[1720533623392,3.433,3081.2,3078.7,3.24811]
[1720533623696,3.7383,3081.1,3079.1,3.2476]
[1720533624053,0.7383,3081.1,3079.2,3.24758]
[1720533624394,3.0,3081.0,3079.2,3.24758]
[1720533624603,0.7383,3081.1,3079.3,0.06493832]
[1720533624807,3.0,3081.4,3079.5,3.24726]
[1720533625099,1.8371,3081.5,3079.7,3.24704]
[1720533625457,3.0,3081.6,3079.8,3.79692]
[1720533625662,3.433,3081.4,3079.2,6.24749]
[1720533625959,3.433,3081.2,3078.6,3.24812]
[1720533626285,3.433,3080.8,3078.5,3.24831]
[1720533626596,3.433,3080.6,3078.3,3.23492151]
[1720533626770,3.433,3080.4,3078.3,3.23492151]
[1720533627093,0.6983,3080.3,3078.4,0.32349215]
[1720533627391,3.6983,3080.3,3078.4,0.32349215]
[1720533627595,3.983,3080.2,3078.3,3.23492151]
[1720533627763,3.433,3080.0,3077.5,3.24934]
[1720533627963,3.983,3079.9,3077.0,2.3569]
[1720533628200,3.3097,3079.6,3076.9,3.24999]
[1720533628495,5.2427,3079.3,3077.0,0.650009]
[1720533628684,5.2427,3079.3,3076.3,5.7899]
[1720533628882,1.8097,3079.3,3077.2,3.24967]
[1720533629085,3.983,3079.2,3076.9,3.25001]
[1720533629263,6.433,3079.1,3076.5,3.25036]
[1720533629463,3.433,3078.9,3076.3,5.60752]
[1720533629697,3.433,3078.7,3076.4,3.811282]
[1720533629897,6.433,3078.6,3076.4,0.560752]
[1720533630073,3.433,3078.6,3076.4,0.560752]
[1720533630274,3.433,3078.6,3076.5,3.31537501]
[1720533630275,5.4662,3078.5,3076.5,3.31537501]
[1720533630487,3.433,3078.3,3076.4,0.560752]
[1720533630663,3.3983,3078.2,3076.4,0.560752]
[1720533631272,0.3983,3078.2,3076.4,0.560752]
[1720533631674,0.3983,3078.2,3076.5,0.06500075]
[1720533631875,0.3983,3078.2,3076.6,3.25032]
[1720533632277,0.3983,3078.2,3076.4,0.560752]
[1720533632611,0.3983,3078.2,3076.5,0.3811322]
[1720533632912,3.0,3078.4,3076.7,3.2502]
[1720533633077,2.4662,3078.5,3076.5,0.3811322]
[1720533633592,2.4662,3078.5,3076.5,3.25037]
[1720533633777,2.4662,3078.5,3076.6,3.31531229]
[1720533633980,2.4662,3078.5,3076.7,3.25015]
[1720533634180,2.4662,3078.5,3077.0,3.24982]
[1720533634483,2.4662,3078.5,3077.1,0.06498188]
[1720533634680,0.24662,3078.4,3077.2,0.33148019]
[1720533634883,2.4662,3078.5,3077.3,0.06498191]
[1720533635100,2.4662,3078.5,3077.3,0.06498195]
[1720533635270,2.4662,3078.5,3077.2,0.33148019]
[1720533635466,2.4662,3078.5,3076.5,3.0]
[1720533635667,2.4662,3078.5,3076.6,0.55]
[1720533635973,2.4662,3078.5,3076.8,3.25011]
[1720533636671,2.4662,3078.5,3076.6,0.55]
[1720533636871,2.4662,3078.5,3076.3,6.80065]
[1720533637197,0.24662,3078.4,3076.5,3.25035]
[1720533637515,3.24662,3078.4,3076.6,0.55]
[1720533637683,3.24662,3078.4,3076.6,3.55]
[1720533637883,3.24662,3078.4,3076.6,3.80034]
[1720533638272,3.24662,3078.4,3076.7,3.25013]
[1720533638474,0.571282,3078.3,3076.8,0.380013]
[1720533638708,0.571282,3078.3,3076.8,0.44500216]
[1720533638919,0.571282,3078.3,3076.8,0.380013]
[1720533639226,0.571282,3078.3,3076.4,0.680065]
[1720533639412,0.571282,3078.3,3076.5,0.06499492]
[1720533639614,0.571282,3078.3,3076.8,3.25012]
[1720533639820,2.4662,3078.5,3077.1,3.24981]
[1720533640134,2.4662,3078.5,3076.2,6.25071]
[1720533640135,2.4662,3078.5,3077.2,3.31465197]
[1720533640315,2.4662,3078.5,3077.3,0.06497821]
[1720533641595,2.4662,3078.5,3077.3,3.24959]
[1720533641800,2.4662,3078.5,3077.4,3.86445439]
[1720533642005,0.34027675,3078.4,3077.5,0.38644544]
[1720533642331,0.34027675,3078.4,3076.9,6.56489537]
[1720533642565,0.34027675,3078.4,3077.1,3.24977]
[1720533642750,0.34027675,3078.4,3077.0,3.55]
[1720533642751,0.34027675,3078.4,3077.2,4.04797745]
[1720533642932,0.34027675,3078.4,3078.3,3.24854]
[1720533643240,0.34027675,3078.4,3078.3,3.898268]
[1720533643447,0.34027675,3078.4,3078.3,3.96322465]
[1720533643598,0.34027675,3078.4,3078.3,4.51322465]
[1720533643810,0.34027675,3078.4,3078.3,1.26468465]
[1720533644032,0.34027675,3078.4,3078.3,0.649728]
[1720533644210,0.34027675,3078.4,3078.1,3.06496226]
[1720533644406,0.34027675,3078.4,3078.2,3.79863]
[1720533644637,0.34027675,3078.4,3078.3,3.24854]
[1720533644798,0.34027675,3078.4,3078.3,7.11203139]
[1720533644996,2.4496,3080.4,3078.5,3.24829]
[1720533645209,2.4496,3080.4,3079.2,3.24753]
[1720533645409,2.4496,3080.4,3079.0,3.24775]
[1720533645613,2.4496,3080.4,3079.1,3.24769]
[1720533645932,2.4496,3080.4,3078.8,3.24796]
[1720533646132,2.4496,3080.4,3078.6,3.55]
[1720533646133,2.4496,3080.4,3078.9,3.88128952]
[1720533646435,2.4496,3080.4,3079.0,3.31273241]
[1720533646649,2.4496,3080.4,3079.0,3.86273241]
[1720533647143,2.4496,3080.4,3079.4,3.24735]
[1720533647315,2.4496,3080.4,3079.5,0.06493289]
[1720533647516,2.4496,3080.4,3079.6,0.33122829]
[1720533648036,2.4496,3080.4,3079.0,0.55]
[1720533648238,2.4496,3080.4,3079.0,0.61494238]
[1720533648544,2.4496,3080.4,3079.2,3.2475]
[1720533648751,2.4496,3080.4,3079.3,0.55]
[1720533649138,2.4496,3080.4,3079.3,0.06493606]
[1720533649443,2.2697,3081.3,3079.3,3.49793606]
[1720533649640,2.2697,3081.3,3080.1,3.24656]
[1720533649954,2.2697,3081.3,3080.2,0.06491768]
[1720533650317,0.34011423,3081.6,3080.8,3.24581]
[1720533650521,2.2697,3082.2,3080.9,3.61490207]
[1720533650827,2.2697,3082.2,3081.0,0.68607121]
[1720533651031,2.2697,3082.2,3081.1,0.06490207]
[1720533651375,2.2697,3082.2,3081.0,0.68607121]
[1720533651577,2.2697,3082.2,3080.3,3.0]
[1720533651872,2.2697,3082.2,3080.1,3.0]
[1720533652041,2.2697,3082.2,3080.2,0.55]
[1720533652369,2.4343,3082.1,3080.2,0.55]
[1720533652575,2.4343,3082.1,3079.7,3.24702]
[1720533652576,3.433,3082.0,3080.0,3.0]
[1720533652744,3.67643,3082.0,3080.1,0.3]
[1720533653088,3.0,3081.9,3080.1,0.3]
[1720533653382,2.4343,3081.8,3079.5,3.24723]
[1720533653664,2.4343,3081.8,3079.6,0.55]
[1720533653921,2.3931,3081.5,3078.9,6.82699952]
[1720533654044,5.3931,3081.5,3079.1,3.24766]
[1720533654248,0.88261,3081.4,3079.3,3.24748]
[1720533654460,7.31561,3081.4,3079.2,0.67455928]
[1720533654636,7.31561,3081.4,3078.9,0.39622385]
[1720533654831,7.31561,3081.4,3078.9,3.24786]
[1720533655072,3.433,3081.2,3079.0,3.2478]
[1720533655441,3.0,3081.1,3078.9,3.24782]
[1720533655627,2.3836,3081.0,3079.0,3.2478]
[1720533655828,2.3836,3081.0,3079.0,3.433]
[1720533656067,2.3836,3081.0,3079.5,3.24721]
[1720533656271,2.3836,3081.0,3079.2,0.06492503]
[1720533656470,2.3836,3081.0,3079.4,3.24729]
[1720533656675,2.3836,3081.0,3079.5,3.79725]
[1720533656855,2.3836,3081.0,3079.5,3.86217969]
[1720533657062,2.62196,3081.0,3079.6,0.71094697]
[1720533657435,2.62196,3081.0,3079.5,0.55]
[1720533657690,2.62196,3081.0,3079.4,0.55]
[1720533657938,2.62196,3081.0,3079.1,0.3433]
[1720533658161,3.0,3080.9,3078.9,3.0]
[1720533658465,3.0,3080.9,3079.1,3.24767]
[1720533658674,3.0,3080.9,3079.2,3.064939]
[1720533659062,3.0,3080.9,3078.8,3.24801]
[1720533659373,0.562196,3080.8,3078.9,0.324801]
[1720533659532,2.2865,3080.7,3078.7,6.24809]
[1720533659728,5.2865,3080.7,3078.7,3.0]
[1720533659978,5.2865,3080.7,3078.7,6.2481]
[1720533660332,5.2865,3080.7,3078.4,3.24837]
[1720533660576,1.12529851,3080.6,3078.4,3.24837]
[1720533660769,0.64117985,3080.5,3078.5,0.324837]
[1720533661172,0.64117985,3080.5,3078.6,3.24818]
[1720533661486,7.03247509,3080.4,3078.5,0.324837]
[1720533661686,6.57830365,3080.3,3078.2,3.24855]
[1720533661850,5.4529,3080.3,3078.3,0.06495549]
[1720533662049,5.4529,3080.3,3078.4,3.24842]
[1720533662247,2.4529,3080.3,3078.4,6.49668]
[1720533662462,0.54529,3080.2,3078.5,0.65616355]
[1720533662690,3.54529,3080.2,3078.4,3.24835]
[1720533662991,3.54529,3080.2,3078.6,3.24818]
[1720533663147,3.54529,3080.2,3078.7,0.61494807]
[1720533663468,2.4529,3080.3,3078.8,0.06494805]
[1720533663670,2.4529,3080.3,3078.9,3.7979]
[1720533663988,2.4529,3080.3,3078.9,0.55]
[1720533664487,2.4529,3080.3,3078.1,3.24866]
[1720533664705,2.4529,3080.3,3078.8,3.248]
[1720533664896,2.4529,3080.3,3079.0,3.24774]
[1720533665051,2.4529,3080.3,3079.1,3.06494085]
[1720533665258,2.4529,3080.3,3079.1,6.31261085]
[1720533665596,2.4529,3080.3,3079.1,3.0]
[1720533665901,2.4529,3080.3,3079.3,3.24748]
[1720533666061,2.4529,3080.3,3079.4,0.94617623]
[1720533666616,2.4529,3080.3,3079.5,3.24727]
[1720533666760,2.4529,3080.3,3079.6,0.55]
[1720533667582,2.4529,3080.3,3079.4,0.33124131]
[1720533667773,2.4529,3080.3,3078.8,3.24801]
[1720533667971,2.4529,3080.3,3078.9,3.61493957]
[1720533668157,2.4529,3080.3,3079.1,3.24769]
[1720533668361,2.4529,3080.3,3079.3,3.24744]
[1720533668596,2.76338586,3080.8,3079.4,0.55]
[1720533668763,2.76338586,3080.8,3079.5,0.704485]
[1720533668959,2.76338586,3080.8,3079.4,0.55]
[1720533669266,2.76338586,3080.8,3079.5,3.3121332]
[1720533669495,2.76338586,3080.8,3079.6,0.55]
[1720533670108,2.76338586,3080.8,3079.5,3.24726]
[1720533670403,2.76338586,3080.8,3079.6,0.61492939]
[1720533670611,1.12499563,3080.7,3079.2,3.0]
[1720533670897,1.12499563,3080.7,3078.7,3.24808]
[1720533670898,1.12499563,3080.6,3078.8,6.24792]
[1720533671087,1.12499563,3080.7,3078.9,3.31284226]
[1720533671270,1.12499563,3080.6,3079.0,3.24779]
[1720533671459,1.12499563,3080.7,3079.1,3.39621105]
[1720533671881,1.12499563,3080.7,3079.2,3.24759]
[1720533672105,4.12499563,3080.7,3079.1,0.33127323]
[1720533672317,1.12499563,3080.6,3079.2,0.55]
[1720533672663,3.0,3080.7,3079.2,0.55]
[1720533672878,2.3946,3080.6,3077.9,3.24894]
[1720533673078,2.3946,3080.6,3078.0,3.24883]
[1720533673310,2.3946,3080.3,3078.1,3.24874]
[1720533673511,3.03306,3080.2,3078.2,0.324874]
[1720533673676,2.4503,3079.9,3077.4,3.24942]
[1720533673871,3.433,3079.4,3077.0,1.302409]
[1720533674113,2.2768,3078.9,3076.6,3.25027]
[1720533674320,2.2768,3078.8,3076.8,3.25012]
[1720533674486,2.2768,3078.8,3076.7,3.31519666]
[1720533674811,0.52768,3078.7,3076.8,0.72153227]
[1720533675014,3.0,3078.7,3076.8,3.97157845]
[1720533675190,2.2768,3078.8,3077.0,3.24991]
[1720533675397,2.2768,3078.8,3076.8,3.97157845]
[1720533675626,2.2768,3078.8,3076.9,3.0]
[1720533675915,2.2768,3078.8,3076.7,3.25023]
[1720533676079,0.22768,3078.7,3076.8,6.82300722]
[1720533676273,0.22768,3078.7,3076.8,3.325023]
[1720533676551,2.4044,3078.6,3076.8,0.325023]
[1720533676673,2.4044,3078.6,3076.5,3.25039]
[1720533676879,2.4044,3078.5,3076.4,6.48543151]
[1720533677075,2.4044,3077.9,3075.4,3.25152]
[1720533677281,2.4044,3077.5,3075.3,1.303013]
[1720533677592,5.909,3077.4,3075.3,1.303013]
[1720533677800,3.8909,3077.3,3075.3,1.303013]
[1720533677991,3.8909,3077.3,3074.9,3.31711866]
[1720533678183,2.4258,3077.2,3074.9,0.06501866]
[1720533678535,2.4258,3077.2,3075.7,3.25127]
[1720533678677,2.4258,3077.2,3075.8,0.06500549]
[1720533678876,2.4258,3077.2,3075.9,0.34980055]
[1720533679130,2.4258,3077.2,3074.8,3.433]
[1720533679409,2.4258,3077.2,3075.5,3.2515]
[1720533679610,2.4258,3077.2,3076.2,3.25067]
[1720533679824,2.4328,3078.6,3076.3,0.06499469]
[1720533679984,2.4328,3078.6,3076.5,3.25035]
[1720533680181,1.5,3079.1,3076.3,3.06499469]
[1720533680182,1.39203371,3078.5,3076.6,0.650081]
[1720533680398,1.5,3079.1,3075.1,3.64886297]
[1720533680399,3.52908571,3078.4,3076.7,0.06499571]
[1720533680611,1.12598571,3078.3,3076.2,3.25066]
[1720533680796,1.12598571,3078.3,3076.3,3.55]
[1720533680997,2.3431,3078.2,3076.3,3.55]
[1720533681192,1.12598571,3078.1,3076.3,0.55]
[1720533681399,0.34690857,3078.0,3076.1,0.55]
[1720533681714,2.3431,3078.2,3076.2,3.25075]
[1720533681911,2.3431,3078.2,3076.3,3.6149966]
[1720533682231,2.3431,3078.2,3076.9,3.24998]
[1720533682543,2.3431,3078.2,3077.0,0.55]
[1720533683213,2.3431,3078.2,3077.0,3.55]
[1720533683409,2.3431,3078.2,3077.1,0.679995]
[1720533683807,2.3431,3078.2,3076.7,3.0]
[1720533684008,2.3431,3078.2,3076.8,0.61499217]
[1720533684423,2.3431,3078.2,3076.8,0.55]
[1720533684919,2.3431,3078.2,3076.7,0.55]